Workbook

Sheet Based on Meets
A3: NUMBER OF MEETS PER SEMESTER | E3: ONE | F3: TWO | H3: THREE | K3: FOUR | O3: FIVE | T3: SIX
A4: MEET Number | E4: 1 | F4: 1 | G4: 2 | H4: 1 | I4: 2 | J4: 3 | K4: 1 | L4: 2 | M4: 3 | N4: 4 | O4: 1 | P4: 2 | Q4: 3 | R4: 4 | S4: 5 | T4: 1 | U4: 2 | V4: 3 | W4: 4 | X4: 5 | Y4: 6
A6: Accounting/Finance | D6: LEVEL
B7: Accounting | D7: baseline | E7: y | F7: y | G7: y | H7: y | I7: y | J7: y | K7: y | L7: y | M7: y | N7: y | O7: y | P7: y | Q7: y | R7: y | S7: y | T7: y | U7: y | V7: y | W7: y | X7: y | Y7: y
B8: Initial Balance | D8: baseline | E8: y | F8: y | G8: y | H8: y | I8: y | J8: y | K8: y | L8: y | M8: y | N8: y | O8: y | P8: y | Q8: y | R8: y | S8: y | T8: y | U8: y | V8: y | W8: y | X8: y | Y8: y
B9: P&L | D9: baseline | E9: y | F9: y | G9: y | H9: y | I9: y | J9: y | K9: y | L9: y | M9: y | N9: y | O9: y | P9: y | Q9: y | R9: y | S9: y | T9: y | U9: y | V9: y | W9: y | X9: y | Y9: y
B10: Balance Sheet | D10: baseline | E10: y | F10: y | G10: y | H10: y | I10: y | J10: y | K10: y | L10: y | M10: y | N10: y | O10: y | P10: y | Q10: y | R10: y | S10: y | T10: y | U10: y | V10: y | W10: y | X10: y | Y10: y
B11: Overdraft | D11: baseline | E11: y | F11: y | G11: y | H11: y | I11: y | J11: y | K11: y | L11: y | M11: y | N11: y | O11: y | P11: y | Q11: y | R11: y | S11: y | T11: y | U11: y | V11: y | W11: y | X11: y | Y11: y
B12: Forex | D12: baseline | E12: o | F12: y | G12: y | H12: y | I12: y | J12: y | K12: y | L12: y | M12: y | N12: y | P12: y | Q12: y | R12: y | S12: y | U12: y | V12: y | W12: y | X12: y | Y12: y
B13: Cost of Goods | D13: baseline | E13: y | F13: y | G13: y | H13: y | I13: y | J13: y | K13: y | L13: y | M13: y | N13: y | O13: y | P13: y | Q13: y | R13: y | S13: y | T13: y | U13: y | V13: y | W13: y | X13: y | Y13: y
B14: Quiz | D14: baseline | E14: o | F14: o | G14: o | H14: o | I14: o | J14: o | K14: y | L14: y | M14: y | N14: y | P14: y | Q14: y | R14: y | S14: y | U14: y | V14: y | W14: y | X14: y | Y14: y
A15: Retailing
B16: Cash flow | D16: baseline | E16: y | F16: y | G16: y | H16: y | I16: y | J16: y | K16: y | L16: y | M16: y | N16: y | O16: y | P16: y | Q16: y | R16: y | S16: y | T16: y | U16: y | V16: y | W16: y | X16: y | Y16: y
B17: Market Demand | D17: baseline | E17: y | F17: y | G17: y | H17: y | I17: y | J17: y | K17: y | L17: y | M17: y | N17: y | O17: y | P17: y | Q17: y | R17: y | S17: y | T17: y | U17: y | V17: y | W17: y | X17: y | Y17: y
B18: Pricing effects | D18: baseline | E18: y | F18: y | G18: y | H18: y | I18: y | J18: y | K18: y | L18: y | M18: y | N18: y | O18: y | P18: y | Q18: y | R18: y | S18: y | T18: y | U18: y | V18: y | W18: y | X18: y | Y18: y
B19: Price elasticity | D19: baseline | E19: y | F19: y | G19: y | H19: y | I19: y | J19: y | K19: y | L19: y | M19: y | N19: y | O19: y | P19: y | Q19: y | R19: y | S19: y | T19: y | U19: y | V19: y | W19: y | X19: y | Y19: y
B20: Retail Forecast | D20: baseline | E20: y | F20: y | G20: y | H20: y | I20: y | J20: y | K20: y | L20: y | M20: y | N20: y | O20: y | P20: y | Q20: y | R20: y | S20: y | T20: y | U20: y | V20: y | W20: y | X20: y | Y20: y
B21: Retail Capacity | D21: baseline | E21: y | F21: y | G21: y | H21: y | I21: y | J21: y | K21: y | L21: y | M21: y | N21: y | O21: y | P21: y | Q21: y | R21: y | S21: y | T21: y | U21: y | V21: y | W21: y | X21: y | Y21: y
B22: Holiday | D22: baseline | E22: y | F22: y | G22: y | H22: y | I22: y | J22: y | K22: y | L22: y | M22: y | N22: y | O22: y | P22: y | Q22: y | R22: y | S22: y | T22: y | U22: y | V22: y | W22: y | X22: y | Y22: y
B23: Relationship - Retail - Finance
C24: Observe Sales | D24: baseline | E24: y | F24: y | G24: y | H24: y | I24: y | J24: y | K24: y | L24: y | M24: y | N24: y | O24: y | P24: y | Q24: y | R24: y | S24: y | T24: y | U24: y | V24: y | W24: y | X24: y | Y24: y
C25: Observe Gross Trading Profit | D25: baseline | E25: y | F25: y | G25: y | H25: y | I25: y | J25: y | K25: y | L25: y | M25: y | N25: y | O25: y | P25: y | Q25: y | R25: y | S25: y | T25: y | U25: y | V25: y | W25: y | X25: y | Y25: y
C26: Observe Net Profit | D26: baseline | E26: y | F26: y | G26: y | H26: y | I26: y | J26: y | K26: y | L26: y | M26: y | N26: y | O26: y | P26: y | Q26: y | R26: y | S26: y | T26: y | U26: y | V26: y | W26: y | X26: y | Y26: y
B27: Quiz | D27: baseline | E27: o | F27: o | G27: o | H27: o | I27: o | J27: o | K27: y | L27: y | M27: y | N27: y | P27: y | Q27: y | R27: y | S27: y | U27: y | V27: y | W27: y | X27: y | Y27: y
A28: Procurement
B29: Replenishment | D29: baseline | E29: y | F29: y | G29: y | H29: y | I29: y | J29: y | K29: y | L29: y | M29: y | N29: y | O29: y | P29: y | Q29: y | R29: y | S29: y | T29: y | U29: y | V29: y | W29: y | X29: y | Y29: y
B30: Vendor evaluation | D30: baseline | E30: y | F30: y | G30: y | H30: y | I30: y | J30: y | K30: y | L30: y | M30: y | N30: y | O30: y | P30: y | Q30: y | R30: y | S30: y | T30: y | U30: y | V30: y | W30: y | X30: y | Y30: y
B31: Bulk discount | D31: baseline | E31: y | F31: y | G31: y | H31: y | I31: y | J31: y | K31: y | L31: y | M31: y | N31: y | O31: y | P31: y | Q31: y | R31: y | S31: y | T31: y | U31: y | V31: y | W31: y | X31: y | Y31: y
B32: Lead Time | D32: baseline | E32: y | F32: y | G32: y | H32: y | I32: y | J32: y | K32: y | L32: y | M32: y | N32: y | O32: y | P32: y | Q32: y | R32: y | S32: y | T32: y | U32: y | V32: y | W32: y | X32: y | Y32: y
B33: Purchase Request | D33: baseline | E33: y | F33: y | G33: y | H33: y | I33: y | J33: y | K33: y | L33: y | M33: y | N33: y | O33: y | P33: y | Q33: y | R33: y | S33: y | T33: y | U33: y | V33: y | W33: y | X33: y | Y33: y
B34: Purchase Order | D34: baseline | E34: y | F34: y | G34: y | H34: y | I34: y | J34: y | K34: y | L34: y | M34: y | N34: y | O34: y | P34: y | Q34: y | R34: y | S34: y | T34: y | U34: y | V34: y | W34: y | X34: y | Y34: y
B35: Combined PO | D35: baseline | E35: o | F35: y | G35: y | H35: y | I35: y | J35: y | K35: y | L35: y | M35: y | N35: y | P35: y | Q35: y | R35: y | S35: y | U35: y | V35: y | W35: y | X35: y | Y35: y
B36: Relationship - Procurement - Finance
C37: Observe Inventory in Accounting | D37: baseline | E37: y | F37: y | G37: y | H37: y | I37: y | J37: y | K37: y | L37: y | M37: y | N37: y | O37: y | P37: y | Q37: y | R37: y | S37: y | T37: y | U37: y | V37: y | W37: y | X37: y | Y37: y
C38: Observe Average costing | D38: baseline | E38: y | F38: y | G38: y | H38: y | I38: y | J38: y | K38: y | L38: y | M38: y | N38: y | O38: y | P38: y | Q38: y | R38: y | S38: y | T38: y | U38: y | V38: y | W38: y | X38: y | Y38: y
C39: Observe Cash position | D39: baseline | E39: y | F39: y | G39: y | H39: y | I39: y | J39: y | K39: y | L39: y | M39: y | N39: y | O39: y | P39: y | Q39: y | R39: y | S39: y | T39: y | U39: y | V39: y | W39: y | X39: y | Y39: y
B40: Relationship - Procurement - Retail
C41: Impact of demand on forecast | D41: baseline | E41: y | F41: y | G41: y | H41: y | I41: y | J41: y | K41: y | L41: y | M41: y | N41: y | O41: y | P41: y | Q41: y | R41: y | S41: y | T41: y | U41: y | V41: y | W41: y | X41: y | Y41: y
C42: Impact of retail capacity on purchase volume | D42: baseline | E42: y | F42: y | G42: y | H42: y | I42: y | J42: y | K42: y | L42: y | M42: y | N42: y | O42: y | P42: y | Q42: y | R42: y | S42: y | T42: y | U42: y | V42: y | W42: y | X42: y | Y42: y
B43: Quiz | D43: baseline | E43: o | F43: o | G43: o | H43: o | I43: o | J43: o | K43: y | L43: y | M43: y | N43: y | P43: y | Q43: y | R43: y | S43: y | U43: y | V43: y | W43: y | X43: y | Y43: y
A44: Marketing
B45: Return On Investment | D45: baseline | E45: o | F45: y | G45: y | H45: y | I45: y | J45: y | K45: y | L45: y | M45: y | N45: y | P45: y | Q45: y | R45: y | S45: y | U45: y | V45: y | W45: y | X45: y | Y45: y
B46: Market Intelligence | D46: baseline | E46: y | F46: y | G46: y | H46: y | I46: y | J46: y | K46: y | L46: y | M46: y | N46: y | O46: y | P46: y | Q46: y | R46: y | S46: y | T46: y | U46: y | V46: y | W46: y | X46: y | Y46: y
B47: Relationship - Marketing - Retail
C48: Impact of marketing on sales | D48: baseline | E48: y | F48: y | G48: y | H48: y | I48: y | J48: y | K48: y | L48: y | M48: y | N48: y | O48: y | P48: y | Q48: y | R48: y | S48: y | T48: y | U48: y | V48: y | W48: y | X48: y | Y48: y
C49: Impact of competition on pricing | D49: baseline | E49: o | F49: y | G49: y | H49: y | I49: y | J49: y | K49: y | L49: y | M49: y | N49: y | P49: y | Q49: y | R49: y | S49: y | U49: y | V49: y | W49: y | X49: y | Y49: y
B50: Relationship - Marketing - Finance
C51: Observe marketing expense in accounting | D51: baseline | E51: o | F51: y | G51: y | H51: y | I51: y | J51: y | K51: y | L51: y | M51: y | N51: y | P51: y | Q51: y | R51: y | S51: y | U51: y | V51: y | W51: y | X51: y | Y51: y
B52: Relationship - Marketing - Procurement
C53: Impact of compeition on procurement | D53: baseline | E53: o | F53: y | G53: y | H53: y | I53: y | J53: y | K53: y | L53: y | M53: y | N53: y | P53: y | Q53: y | R53: y | S53: y | U53: y | V53: y | W53: y | X53: y | Y53: y
B54: Quiz | D54: baseline | E54: o | F54: o | G54: o | H54: o | I54: o | J54: o | K54: y | L54: y | M54: y | N54: y | P54: y | Q54: y | R54: y | S54: y | U54: y | V54: y | W54: y | X54: y | Y54: y
A55: Forecast
B56: Retail Forecast | D56: baseline | E56: y | F56: y | G56: y | H56: y | I56: y | J56: y | L56: y | M56: y | N56: y | O56: y | Q56: y | R56: y | S56: y | T56: y | V56: y | W56: y | X56: y | Y56: y
B57: Wholesales Forecast | D57: baseline | E57: y | F57: y | G57: y | H57: y | I57: y | J57: y | L57: y | M57: y | N57: y | O57: y | Q57: y | R57: y | S57: y | T57: y | V57: y | W57: y | X57: y | Y57: y
B58: Currency Forecast | D58: baseline | E58: o | F58: y | G58: y | H58: y | I58: y | J58: y | L58: y | M58: y | N58: y | Q58: y | R58: y | S58: y | V58: y | W58: y | X58: y | Y58: y
B59: Relationship - Forecast - Retail
C60: Impact of demand on retailing strategy | D60: baseline | E60: y | F60: y | G60: y | H60: y | I60: y | J60: y | L60: y | M60: y | N60: y | O60: y | Q60: y | R60: y | S60: y | T60: y | V60: y | W60: y | X60: y | Y60: y
B61: Relationship - Forecast - Finance
C62: Impact of currency on cost | D62: baseline | E62: o | F62: y | G62: y | H62: y | I62: y | J62: y | L62: y | M62: y | N62: y | Q62: y | R62: y | S62: y | V62: y | W62: y | X62: y | Y62: y
B63: Relationship - Forecast - Procurement
C64: Impact of demand on procurement volume | D64: baseline | E64: y | F64: y | G64: y | H64: y | I64: y | J64: y | L64: y | M64: y | N64: y | O64: y | Q64: y | R64: y | S64: y | T64: y | V64: y | W64: y | X64: y | Y64: y
B65: Relationship - Forecast - Marketing
C66: Impact of demand on marketing strategy | D66: baseline | E66: o | F66: y | G66: y | H66: y | I66: y | J66: y | L66: y | M66: y | N66: y | Q66: y | R66: y | S66: y | V66: y | W66: y | X66: y | Y66: y
B67: Quiz | D67: baseline | E67: o | F67: o | G67: o | H67: o | I67: o | J67: o | L67: y | M67: y | N67: y | Q67: y | R67: y | S67: y | V67: y | W67: y | X67: y | Y67: y
A68: Warehouse/Logistics
B69: Warehouse capacity | D69: baseline | E69: y | F69: y | G69: y | I69: y | J69: y | L69: y | M69: y | N69: y | O69: y | Q69: y | R69: y | S69: y | T69: y | V69: y | W69: y | X69: y | Y69: y
B70: Logistic costs | D70: baseline | E70: y | F70: y | G70: y | I70: y | J70: y | L70: y | M70: y | N70: y | O70: y | Q70: y | R70: y | S70: y | T70: y | V70: y | W70: y | X70: y | Y70: y
B71: Shipping time | D71: baseline | E71: y | F71: y | G71: y | I71: y | J71: y | L71: y | M71: y | N71: y | O71: y | Q71: y | R71: y | S71: y | T71: y | V71: y | W71: y | X71: y | Y71: y
B72: Auto scheduling | D72: baseline | E72: y | F72: y | G72: y | I72: y | J72: y | L72: y | M72: y | N72: y | O72: y | Q72: y | R72: y | S72: y | T72: y | V72: y | W72: y | X72: y | Y72: y
B73: Combined Shipment | D73: baseline | E73: y | F73: y | G73: y | I73: y | J73: y | L73: y | M73: y | N73: y | O73: y | Q73: y | R73: y | S73: y | T73: y | V73: y | W73: y | X73: y | Y73: y
B74: Relationship - Warehouse/Logistics - Finance
C75: Observe logistics expenses in accounting | D75: baseline | E75: y | F75: y | G75: y | I75: y | J75: y | L75: y | M75: y | N75: y | O75: y | Q75: y | R75: y | S75: y | T75: y | V75: y | W75: y | X75: y | Y75: y
C76: Impact of cash on purchasing power | D76: baseline | E76: y | F76: y | G76: y | I76: y | J76: y | L76: y | M76: y | N76: y | O76: y | Q76: y | R76: y | S76: y | T76: y | V76: y | W76: y | X76: y | Y76: y
B77: Relationship - Warehouse/Logistics - Retail
C78: How to avoid stockout | D78: baseline | E78: y | F78: y | G78: y | I78: y | J78: y | L78: y | M78: y | N78: y | O78: y | Q78: y | R78: y | S78: y | T78: y | V78: y | W78: y | X78: y | Y78: y
C79: How to utilize capacity | D79: baseline | E79: y | F79: y | G79: y | I79: y | J79: y | L79: y | M79: y | N79: y | O79: y | Q79: y | R79: y | S79: y | T79: y | V79: y | W79: y | X79: y | Y79: y
B80: Relationship - Warehouse/Logistics - Procurement
C81: How to avoid stockout | D81: baseline | E81: y | F81: y | G81: y | I81: y | J81: y | L81: y | M81: y | N81: y | O81: y | Q81: y | R81: y | S81: y | T81: y | V81: y | W81: y | X81: y | Y81: y
C82: How to reduce cost through bulk purchase | D82: baseline | E82: y | F82: y | G82: y | I82: y | J82: y | L82: y | M82: y | N82: y | O82: y | Q82: y | R82: y | S82: y | T82: y | V82: y | W82: y | X82: y | Y82: y
C83: Impact of capacity on volume of purchase | D83: baseline | E83: y | F83: y | G83: y | I83: y | J83: y | L83: y | M83: y | N83: y | O83: y | Q83: y | R83: y | S83: y | T83: y | V83: y | W83: y | X83: y | Y83: y
B84: Quiz | D84: baseline | E84: y | F84: y | G84: y | I84: y | J84: y | L84: y | M84: y | N84: y | Q84: y | R84: y | S84: y | V84: y | W84: y | X84: y | Y84: y
A85: Wholesales/B2B
B86: Market Demand | D86: baseline | E86: y | F86: y | G86: y | I86: y | J86: y | L86: y | M86: y | N86: y | O86: y | Q86: y | R86: y | S86: y | T86: y | W86: y | X86: y | Y86: y
B87: Sales Order | D87: baseline | E87: y | F87: y | G87: y | I87: y | J87: y | L87: y | M87: y | N87: y | O87: y | Q87: y | R87: y | S87: y | T87: y | W87: y | X87: y | Y87: y
B88: Bidding/Tendering | D88: baseline | E88: y | F88: y | G88: y | I88: y | J88: y | L88: y | M88: y | N88: y | O88: y | Q88: y | R88: y | S88: y | T88: y | W88: y | X88: y | Y88: y
B89: Willing To Pay | D89: baseline | E89: y | F89: y | G89: y | I89: y | J89: y | L89: y | M89: y | N89: y | O89: y | Q89: y | R89: y | S89: y | T89: y | W89: y | X89: y | Y89: y
B90: Bid days | D90: baseline | E90: y | F90: y | G90: y | I90: y | J90: y | L90: y | M90: y | N90: y | O90: y | Q90: y | R90: y | S90: y | T90: y | W90: y | X90: y | Y90: y
B91: Late Penalty | D91: baseline | E91: y | F91: y | G91: y | I91: y | J91: y | L91: y | M91: y | N91: y | O91: y | Q91: y | R91: y | S91: y | T91: y | W91: y | X91: y | Y91: y
B92: Relationship - Wholesales - Finance
C93: How cash position affects our bidding | D93: baseline | E93: y | F93: y | G93: y | I93: y | J93: y | L93: y | M93: y | N93: y | O93: y | Q93: y | R93: y | S93: y | T93: y | W93: y | X93: y | Y93: y
C94: How inventory position affects our bidding | D94: baseline | E94: y | F94: y | G94: y | I94: y | J94: y | L94: y | M94: y | N94: y | O94: y | Q94: y | R94: y | S94: y | T94: y | W94: y | X94: y | Y94: y
B95: Relationship - Wholesales - Forecast
C96: Impact of demand on bidding | D96: baseline | E96: y | F96: y | G96: y | I96: y | J96: y | L96: y | M96: y | N96: y | O96: y | Q96: y | R96: y | S96: y | T96: y | W96: y | X96: y | Y96: y
C97: Impact of currency changes on bidding | D97: baseline | E97: o | F97: y | G97: y | I97: y | J97: y | L97: y | M97: y | N97: y | Q97: y | R97: y | S97: y | W97: y | X97: y | Y97: y
B98: Relationship - Wholesales - Warehouse
C99: Impact of capacity on bidding | D99: baseline | E99: y | F99: y | G99: y | I99: y | J99: y | L99: y | M99: y | N99: y | O99: y | Q99: y | R99: y | S99: y | T99: y | W99: y | X99: y | Y99: y
B100: Quiz | D100: baseline | E100: o | F100: o | G100: o | I100: o | J100: o | L100: y | M100: y | N100: y | Q100: y | R100: y | S100: y | W100: y | X100: y | Y100: y
A101: Production
B102: Production capacity | D102: baseline | E102: y | F102: y | G102: y | I102: y | J102: y | M102: y | N102: y | O102: y | R102: y | S102: y | T102: y | W102: y | X102: y | Y102: y
B103: Depreciation | D103: baseline | E103: y | F103: y | G103: y | I103: y | J103: y | M103: y | N103: y | O103: y | R103: y | S103: y | T103: y | W103: y | X103: y | Y103: y
B104: Bill Of Materials (BOM) | D104: baseline | E104: y | F104: y | G104: y | I104: y | J104: y | M104: y | N104: y | O104: y | R104: y | S104: y | T104: y | W104: y | X104: y | Y104: y
B105: Raw Materials | D105: baseline | E105: y | F105: y | G105: y | I105: y | J105: y | M105: y | N105: y | O105: y | R105: y | S105: y | T105: y | W105: y | X105: y | Y105: y
B106: Relationship - Production - Finance
C107: Impact of cash on machine investment | D107: baseline | E107: y | F107: y | G107: y | I107: y | J107: y | M107: y | N107: y | O107: y | R107: y | S107: y | T107: y | W107: y | X107: y | Y107: y
C108: How machine disposal affects our profitability | D108: baseline | E108: y | F108: y | G108: y | I108: y | J108: y | M108: y | N108: y | O108: y | R108: y | S108: y | T108: y | W108: y | X108: y | Y108: y
C109: Observe depreciation charges | D109: baseline | E109: y | F109: y | G109: y | I109: y | J109: y | M109: y | N109: y | O109: y | R109: y | S109: y | T109: y | W109: y | X109: y | Y109: y
B110: Relationship - Production - Warehouse
C111: Impact of capacity on production | D111: baseline | E111: y | F111: y | G111: y | I111: y | J111: y | M111: y | N111: y | O111: y | R111: y | S111: y | T111: y | W111: y | X111: y | Y111: y
B112: Relationship - Production - Wholesales
C113: Impact of existing demand on production | D113: baseline | E113: y | F113: y | G113: y | I113: y | J113: y | M113: y | N113: y | O113: y | R113: y | S113: y | T113: y | W113: y | X113: y | Y113: y
B114: Relationship - Production - Retails
C115: Impact of existing demand on production | D115: baseline | E115: y | F115: y | G115: y | I115: y | J115: y | M115: y | N115: y | O115: y | R115: y | S115: y | T115: y | W115: y | X115: y | Y115: y
B116: Relationship - Production - Forecast
C117: Impact of forecast on production | D117: baseline | E117: y | F117: y | G117: y | I117: y | J117: y | M117: y | N117: y | O117: y | R117: y | S117: y | T117: y | W117: y | X117: y | Y117: y
B118: Relationship - Production - Procurement
C119: How much raw materials to buy | D119: baseline | E119: y | F119: y | G119: y | I119: y | J119: y | M119: y | N119: y | O119: y | R119: y | S119: y | T119: y | W119: y | X119: y | Y119: y
B120: Quiz | D120: baseline | E120: o | F120: o | G120: o | I120: o | J120: o | M120: y | N120: y | R120: y | S120: y | W120: y | X120: y | Y120: y
A121: MRP
B122: Material Requirement Planning | D122: baseline | E122: y | G122: y | I122: y | J122: y | M122: y | N122: y | O122: y | R122: y | S122: y | T122: y | X122: y | Y122: y
B123: Minimum stock | D123: baseline | E123: y | G123: y | I123: y | J123: y | M123: y | N123: y | O123: y | R123: y | S123: y | T123: y | X123: y | Y123: y
B124: Production Split | D124: baseline | E124: y | G124: y | I124: y | J124: y | M124: y | N124: y | O124: y | R124: y | S124: y | T124: y | X124: y | Y124: y
B125: Relationship - MRP - Warehouse/Logistics
C126: Impact of move requests on MRP output | D126: baseline | G126: y | I126: y | J126: y | M126: y | N126: y | R126: y | S126: y | X126: y | Y126: y
C127: Impact of inventory on hand on MRP output | D127: baseline | G127: y | I127: y | J127: y | M127: y | N127: y | R127: y | S127: y | X127: y | Y127: y
B128: Relationship - MRP - Production
C129: MRP output on raw materials purchase | D129: baseline | G129: y | I129: y | J129: y | M129: y | N129: y | R129: y | S129: y | X129: y | Y129: y
B130: Relationship - MRP - Procurement
C131: MRP output on finished goods purchase | D131: baseline | G131: y | I131: y | J131: y | M131: y | N131: y | R131: y | S131: y | X131: y | Y131: y
C132: Existing PO impact on MRP output | D132: baseline | G132: y | I132: y | J132: y | M132: y | N132: y | R132: y | S132: y | X132: y | Y132: y
B133: Relationship - MRP - Wholesales
C134: Impact of sales order on MRP output | D134: baseline | G134: y | I134: y | J134: y | M134: y | N134: y | R134: y | S134: y | X134: y | Y134: y
B135: Quiz | D135: baseline | G135: o | I135: o | J135: o | M135: y | N135: y | R135: y | S135: y | X135: y | Y135: y
A136: Maintenance
B137: Predictive | D137: baseline | E137: y | G137: y | J137: y | N137: y | O137: y | S137: y | T137: y | X137: y | Y137: y
B138: Periodic | D138: baseline | E138: y | G138: y | J138: y | N138: y | O138: y | S138: y | T138: y | X138: y | Y138: y
B139: Overall Equipment Efficiency | D139: baseline | E139: y | G139: y | J139: y | N139: y | O139: y | S139: y | T139: y | X139: y | Y139: y
B140: Work Order | D140: baseline | E140: y | G140: y | J140: y | N140: y | O140: y | S140: y | T140: y | X140: y | Y140: y
B141: Relationship - Maintenance - Finance
C142: Observe maintenance expense in accounting | D142: baseline | G142: y | J142: y | N142: y | S142: y | X142: y | Y142: y
B143: Relationship - Maintenance - Production
C144: Impact of work order on production capacity | D144: baseline | G144: y | J144: y | N144: y | S144: y | X144: y | Y144: y
C145: Impact of OEE on production capacity | D145: baseline | G145: y | J145: y | N145: y | S145: y | X145: y | Y145: y
B146: Quiz | D146: baseline | G146: o | J146: o | N146: y | S146: y | X146: y | Y146: y
A147: Human Resource
B148: Counselling | D148: baseline | E148: y | G148: y | J148: y | N148: y | O148: y | S148: y | T148: y | Y148: y
B149: Recruitment | D149: baseline | E149: y | G149: y | J149: y | N149: y | O149: y | S149: y | T149: y | Y149: y
B150: Transfer | D150: baseline | E150: y | G150: y | J150: y | N150: y | O150: y | S150: y | T150: y | Y150: y
B151: Competency | D151: baseline | E151: y | G151: y | J151: y | N151: y | O151: y | S151: y | T151: y | Y151: y
B152: Planned, Actual, Shortfall | D152: baseline | E152: y | G152: y | J152: y | N152: y | O152: y | S152: y | T152: y | Y152: y
B153: Payroll | D153: baseline | E153: y | G153: y | J153: y | N153: y | O153: y | S153: y | T153: y | Y153: y
B154: Relationship - Human Resource - Retail
C155: Impact of staff count on Retail sales | D155: baseline | G155: y | J155: y | N155: y | S155: y | Y155: y
B156: Relationship - Human Resource - Procurement
C157: Impact of staff count on procurement | D157: baseline | G157: y | J157: y | N157: y | S157: y | Y157: y
B158: Relationship - Human Resource - Production
C159: Impact of staff count on Production capacity | D159: baseline | G159: y | J159: y | N159: y | S159: y | Y159: y
B160: Relationship - Human Resource - Maintenance
C161: Impact of staff count on maintenance | D161: baseline | G161: y | J161: y | N161: y | S161: y | Y161: y
B162: Quiz | D162: baseline | G162: y | J162: y | N162: y | S162: y | Y162: y
A163: Service Management
B164: Manpower scheduling | D164: baseline | E164: y | G164: y | J164: y | N164: y | O164: y | S164: y | T164: y | Y164: y
B165: Customer complaint | D165: baseline | E165: y | G165: y | J165: y | N165: y | O165: y | S165: y | T165: y | Y165: y
B166: Relationship - Service Management - Wholesales
C167: Impact of customer satisfaction on sales | D167: baseline | E167: o | G167: y | J167: y | N167: y | S167: y | Y167: y
B168: Relationship - Service Management - Finance
C169: Observe service sales | D169: baseline | E169: y | G169: y | J169: y | N169: y | O169: y | S169: y | T169: y | Y169: y
C170: Observe service margin | D170: baseline | E170: y | G170: y | J170: y | N170: y | O170: y | S170: y | T170: y | Y170: y
B171: Relationship - Service Management - HR
C172: Observe staff availability on service capacity | D172: baseline | E172: y | G172: y | J172: y | N172: y | O172: y | S172: y | T172: y | Y172: y
B173: Quiz | D173: baseline | G173: y | J173: y | N173: y | S173: y | Y173: y

Sheet Benchmark
B1: Using | C1: Seconds
A2: ms_param($gid, "game") | B2: API | C2: 0.02
A3: ms_param_getone("CFIGCOK", $gid, "game", "param"); | B3: API | C3: 0.013

Sheet FORMAT
A1: INT | B1: integer only
A2: POS | B2: positive only
A3: MAX | B3: max
A4: MIN | B4: min
A5: FLOAT | B5: any integer or floating
A6: FMT_FLOAT1
A7: FMT_INT1
A8: FMT_INTMUL
A9: FMT_MIN
A10: FMT_WRD1
A11: FMT_WRDMUL
A12: FMT_WRD3
A13: FMT_WRD1CHAR3
A14: FM

Sheet Sheet2
B1: min | C1: max
A2: Net Profit | B2: =MIN(A3:A5) -> 0 | C2: =MAX(A3:A8) *1 -> 1 | D2: 0 | E2: x-min | F2: max-min
A3: 1 | D3: =C3+D$2 -> 0 | E3: =A3-B$2 -> 1 | F3: =C$2-B$2 -> 1 | G3: =E3/F3 -> 1 | H3: 60 | I3: =H3*G3 -> 60
A4: 0 | D4: 0 | E4: 0 | F4: 1 | G4: 0 | H4: 60 | I4: 0
A5: 0 | D5: 0 | E5: 0 | F5: 1 | G5: 0 | H5: 60 | I5: 0
D6: 0
D7: 0
B8: min | C8: max
A9: Net Profit | B9: =MAX(A10:A12) -> 0 | C9: =MIN(A10:A12) *1 -> -1 | D9: 0 | E9: x-min | F9: max-min
A10: 0 | D10: =C10+D$2 -> 0 | E10: =A10-B$9 -> 0 | F10: =C$9-B$9 -> -1 | G10: =E10/F10 -> 0 | H10: 60 | I10: =H10*G10 -> 0
A11: -1 | D11: 0 | E11: -1 | F11: -1 | G11: 1 | H11: 60 | I11: 60
A12: 0 | D12: 0 | E12: 0 | F12: -1 | G12: 0 | H12: 60 | I12: 0
A14: Class1 | B14: 70 | C14: 30
A15: Class2 | B15: 40 | C15: 20
A16: Class3 | B16: 50 | C16: 40

Sheet Sheet3
A2: 80 | B2: 100 | C2: 100 | D2: 100 | E2: 20 | F2: 100 | H2: =E2+C2+A2 -> 200 | I2: 300 | K2: =H2/I2 -> 0.6666666667
A3: 70 | B3: 100 | C3: 80 | D3: 100 | E3: 20 | F3: 100 | H3: =E3+C3+A3 -> 170 | I3: 300 | J3: =H3/I3 -> 0.5666666667 | K3: =(J3+K2)/2 -> 0.6166666667
A4: 70 | B4: 100 | C4: 80 | D4: 100 | E4: 20 | F4: 100 | H4: =E4+C4+A4 -> 170 | I4: 300 | J4: 0.5666666667 | K4: 0.5916666667
A5: 70 | B5: 100 | C5: 80 | D5: 100 | E5: 20 | F5: 100 | H5: =E5+C5+A5 -> 170 | I5: 300 | J5: 0.5666666667 | K5: 0.5791666667
A6: 70 | B6: 100 | C6: 80 | D6: 100 | E6: 90 | F6: 100 | H6: =E6+C6+A6 -> 240 | I6: 300 | J6: 0.8 | K6: 0.6895833333
A7: 70 | B7: 100 | C7: 80 | D7: 100 | E7: 20 | F7: 100 | H7: =E7+C7+A7 -> 170 | I7: 300 | J7: 0.5666666667 | K7: 0.628125
A8: 70 | B8: 100 | C8: 80 | D8: 100 | E8: 100 | F8: 100 | H8: =E8+C8+A8 -> 250 | I8: 300 | J8: 0.8333333333 | K8: 0.7307291667
A9: 70 | B9: 100 | C9: 80 | D9: 100 | E9: 100 | F9: 100 | H9: =E9+C9+A9 -> 250 | I9: 300 | J9: 0.8333333333 | K9: 0.78203125
A10: 70 | B10: 100 | C10: 80 | D10: 100 | E10: 100 | F10: 100 | H10: =E10+C10+A10 -> 250 | I10: 300 | J10: 0.8333333333 | K10: 0.8076822917
A11: 70 | B11: 100 | C11: 80 | D11: 100 | E11: 100 | F11: 100 | H11: =E11+C11+A11 -> 250 | I11: 300 | J11: 0.8333333333 | K11: 0.8205078125
A12: 70 | B12: 100 | C12: 80 | D12: 100 | E12: 100 | F12: 100 | H12: =E12+C12+A12 -> 250 | I12: 300 | J12: 0.8333333333 | K12: 0.8269205729
A13: 70 | B13: 100 | C13: 80 | D13: 100 | E13: 100 | F13: 100 | H13: =E13+C13+A13 -> 250 | I13: 300 | J13: 0.8333333333 | K13: 0.8301269531
A14: 70 | B14: 100 | C14: 80 | D14: 100 | E14: 100 | F14: 100 | H14: =E14+C14+A14 -> 250 | I14: 300 | J14: 0.8333333333 | K14: 0.8317301432
A15: 70 | B15: 100 | C15: 80 | D15: 100 | E15: 100 | F15: 100 | H15: =E15+C15+A15 -> 250 | I15: 300 | J15: 0.8333333333 | K15: 0.8325317383
A16: 70 | B16: 100 | C16: 80 | D16: 100 | E16: 100 | F16: 100 | H16: =E16+C16+A16 -> 250 | I16: 300 | J16: 0.8333333333 | K16: 0.8329325358
A17: =SUM(A2:A16) -> 1060 | B17: 1500 | C17: 1220 | D17: 1500 | E17: 1090 | F17: 1500 | H17: =E17+C17+A17 -> 3370 | I17: 4500 | J17: 0.7488888889 | K17: =J17-K16 -> -0.08404364692
